bitfinex-derivatives/quotes_ETHF0:USTF0_20260223
["timestamp","ask_amount","ask_price","bid_price","bid_amount"]
[1771835476566,0.53378388,1883.6,1883.4,0.93341326]
[1771835476770,0.00671465,1883.9,1883.3,2.73857437]
[1771835477069,7.62034415,1883.8,1883.3,2.73857437]
[1771835477370,7.62034415,1883.7,1883.4,0.9331971]
[1771835477570,0.53401762,1883.6,1883.4,0.9331971]
[1771835477762,0.00671465,1883.9,1883.4,0.9331971]
[1771835478070,7.62317767,1883.8,1883.4,0.9331971]
[1771835478266,7.62317767,1883.7,1883.4,0.9331971]
[1771835478470,0.53421736,1883.6,1883.4,0.9331971]
[1771835478770,4.44915877,1883.9,1883.4,0.9331971]
[1771835478976,7.62703019,1883.8,1883.4,0.9331971]
[1771835479171,7.62703019,1883.7,1883.4,0.9331971]
[1771835479366,7.62703019,1883.6,1883.4,0.9331971]
[1771835479567,0.53450416,1883.5,1883.4,0.9331971]
[1771835480371,4.44915877,1883.9,1883.4,0.9331971]
[1771835480574,7.09733002,1883.8,1883.6,0.9333854]
[1771835480774,0.00671465,1883.9,1883.6,0.9333854]
[1771835480971,7.09742385,1883.8,1883.4,0.9333854]
[1771835481271,7.09742385,1883.7,1883.4,0.9333854]
[1771835481474,0.00671465,1883.9,1883.4,0.9333854]
[1771835481673,7.0968915,1883.8,1883.4,0.9333854]
[1771835481867,7.0968915,1883.7,1883.4,0.9333854]
[1771835482064,0.00671465,1883.9,1883.4,0.9333854]
[1771835482265,7.09689272,1883.8,1883.4,0.9333854]
[1771835482470,7.09689272,1883.7,1883.4,0.9333854]
[1771835482667,0.00671465,1883.9,1883.4,0.9333854]
[1771835482873,7.0966932,1883.8,1883.4,0.9333854]
[1771835483069,0.00671465,1883.9,1883.6,0.93226034]
[1771835483273,7.09593563,1883.8,1883.6,0.93226034]
[1771835483578,0.00671465,1883.9,1883.6,0.93226034]
[1771835483878,0.26541,1884.1,1883.6,0.93226034]
[1771835484179,7.09646151,1884.0,1883.6,0.93226034]
[1771835484380,0.26541,1884.1,1883.6,0.93226034]
[1771835484580,7.0949919,1884.0,1883.6,0.93226034]
[1771835484781,0.00636621,1884.0,1883.6,0.93226034]
[1771835493082,4.44244412,1884.3,1883.6,0.93226034]
[1771835493386,0.55658839,1884.2,1883.7,0.91729639]
[1771835493586,0.02568977,1884.2,1883.7,0.91729639]
[1771835494083,0.00397498,1884.2,1883.7,0.91729639]
[1771835495489,0.04228099,1884.2,1883.7,0.91729639]
[1771835495686,0.56899593,1884.1,1883.7,0.91729639]
[1771835495986,0.03830601,1884.1,1883.7,0.91729639]
[1771835496784,0.00397498,1884.2,1883.7,0.91729639]
[1771835496983,0.53063531,1884.1,1883.7,0.91729639]
[1771835497183,0.04314751,1884.2,1883.7,0.91729639]
[1771835497384,0.53062457,1884.1,1883.7,0.91729639]
[1771835497680,0.04314751,1884.2,1883.7,0.91729639]
[1771835497886,0.53094675,1884.1,1883.7,0.91729639]
[1771835498187,0.04314751,1884.2,1883.7,0.91729639]
[1771835498383,0.53093403,1884.1,1883.7,0.91729639]
[1771835498584,0.04314751,1884.2,1883.7,0.91729639]
[1771835498784,0.53100612,1884.1,1883.7,0.91729639]
[1771835498985,0.04290991,1884.1,1883.7,0.91729639]
[1771835499186,0.7630832,1883.9,1883.6,0.87600483]
[1771835500393,2.07466627,1884.2,1883.6,0.87600483]
[1771835500590,0.77118052,1884.0,1883.6,0.87600483]
[1771835508195,0.53152117,1883.9,1883.6,0.87600483]
[1771835508494,0.77118052,1884.0,1883.6,0.33047439]
[1771835508696,0.53151967,1883.9,1883.6,0.33047439]
[1771835508891,0.77118052,1884.0,1883.6,0.33047439]
[1771835509092,0.5315196,1883.9,1883.6,0.33047439]
[1771835509391,0.77118052,1884.0,1883.6,0.33047439]
[1771835509592,0.531646,1883.9,1883.6,0.33047439]
[1771835509893,0.77118052,1884.0,1883.6,0.33047439]
[1771835510194,0.53166414,1883.9,1883.6,0.33047439]
[1771835510395,0.77118052,1884.0,1883.6,0.33047439]
[1771835510595,0.53185494,1883.9,1883.6,0.33047439]
[1771835510796,0.77118052,1884.0,1883.6,0.33047439]
[1771835511096,0.5319381,1883.9,1883.6,0.33047439]
[1771835511394,0.00397498,1884.2,1883.6,0.33047439]
[1771835511586,0.53222255,1884.1,1883.6,0.33047439]
[1771835511788,0.00397498,1884.2,1883.6,0.33047439]
[1771835511986,0.5323539,1884.1,1883.6,0.33047439]
[1771835512194,0.00397498,1884.2,1883.6,0.33047439]
[1771835512392,0.53243482,1884.1,1883.6,0.33047439]
[1771835512694,0.00397498,1884.2,1883.6,0.33047439]
[1771835512896,0.53247679,1884.1,1883.6,0.33047439]
[1771835513092,0.00397498,1884.2,1883.6,0.33047439]
[1771835513292,0.53248604,1884.1,1883.6,0.33047439]
[1771835513595,0.00397498,1884.2,1883.6,0.33047439]
[1771835513795,0.53234779,1884.1,1883.6,0.33047439]
[1771835513994,0.91388687,1884.2,1883.6,0.33047439]
[1771835514192,1.44226351,1884.1,1883.6,0.33047439]
[1771835514493,1.44220895,1884.0,1883.6,0.33047439]
[1771835514694,0.90991189,1884.0,1883.6,0.33047439]
[1771835515999,0.90991189,1884.1,1883.6,0.33047439]
[1771835516198,0.53226478,1884.0,1883.6,0.33047439]
[1771835516498,0.90991189,1884.1,1883.6,0.33047439]
[1771835516798,0.53227763,1884.0,1883.6,0.33047439]
[1771835516999,0.91388687,1884.2,1883.6,0.33047439]
[1771835517194,7.61746841,1884.1,1883.6,0.33047439]
[1771835517394,0.53228245,1884.0,1883.6,0.33047439]
[1771835517592,0.91388687,1884.2,1883.6,0.33047439]
[1771835517899,8.52770657,1884.1,1883.6,0.33047439]
[1771835518100,1.44221636,1884.0,1883.6,0.33047439]
[1771835518298,0.90991189,1884.0,1883.6,0.33047439]
[1771835518797,0.00397498,1884.2,1883.6,0.33047439]
[1771835518798,0.90991189,1884.1,1883.6,0.33047439]
[1771835518998,0.53224686,1884.0,1883.6,0.33047439]
[1771835519300,0.90991189,1884.1,1883.6,0.33047439]
[1771835519498,0.5322746,1884.0,1883.6,0.33047439]
[1771835519701,0.90991189,1884.1,1883.6,0.33047439]
[1771835519998,0.53235351,1884.0,1883.6,0.33047439]
[1771835520199,0.90991189,1884.1,1883.6,0.33047439]
[1771835520402,1.44229021,1884.0,1883.6,0.33047439]
[1771835520595,1.44217793,1883.9,1883.6,0.33047439]
[1771835520795,1.44217793,1883.9,1882.9,0.91785917]
[1771835520796,0.53215513,1883.8,1882.9,0.91785917]
[1771835521000,0.53215513,1883.7,1882.9,0.91785917]
[1771835521201,0.90991189,1883.8,1882.9,0.91785917]
[1771835521403,0.53200339,1883.7,1882.9,0.91785917]
[1771835521602,0.90991189,1883.8,1882.9,0.91785917]
[1771835521794,0.53196061,1883.7,1882.9,0.91785917]
[1771835521995,0.90991189,1883.8,1882.9,0.91785917]
[1771835522199,0.53196054,1883.7,1882.9,0.91785917]
[1771835522402,0.90991189,1883.8,1882.9,0.91785917]
[1771835522603,0.53185556,1883.7,1882.9,0.91785917]
[1771835522800,0.90991189,1883.8,1882.9,0.91785917]
[1771835522995,0.5319482,1883.7,1882.9,0.91785917]
[1771835523201,0.90991189,1883.8,1882.9,0.91785917]
[1771835523402,0.5319633,1883.7,1882.9,0.91785917]
[1771835523703,0.90991189,1883.8,1882.9,0.91785917]
[1771835523905,0.53203171,1883.7,1882.9,0.91785917]
[1771835524105,0.90991189,1883.8,1882.9,0.91785917]
[1771835524405,0.53198606,1883.7,1882.9,0.91785917]
[1771835524601,0.90991189,1883.8,1882.9,0.91785917]
[1771835524801,0.53197904,1883.7,1882.9,0.91785917]
[1771835525003,0.90991189,1883.8,1882.9,0.91785917]
[1771835525204,0.53197176,1883.7,1882.9,0.91785917]
[1771835525405,0.90991189,1883.8,1882.9,0.91785917]
[1771835525602,0.53193631,1883.7,1882.9,0.91785917]
[1771835525798,0.90991189,1883.8,1882.9,0.91785917]
[1771835526002,0.53193631,1883.7,1882.9,0.91785917]
[1771835526207,0.90991189,1883.8,1882.9,0.91785917]
[1771835526409,0.53188818,1883.7,1882.9,0.91785917]
[1771835526708,0.90991189,1883.8,1883.1,0.91785917]
[1771835526905,0.53188842,1883.7,1883.1,0.91785917]
[1771835527210,0.90991189,1884.0,1883.3,0.91785917]
[1771835527404,0.53183446,1883.9,1883.3,0.91785917]
[1771835527606,0.53186858,1883.8,1883.3,0.91785917]
[1771835527910,0.90991189,1883.8,1883.3,0.91785917]
[1771835535316,0.90991189,1884.1,1883.3,0.91785917]
[1771835535516,8.51372493,1884.0,1883.3,0.91785917]
[1771835535716,0.53182636,1883.9,1883.3,0.91785917]
[1771835536016,0.53182636,1883.8,1883.3,0.91785917]
[1771835536211,0.90991189,1884.0,1883.3,0.91785917]
[1771835536409,1.44183533,1883.9,1883.3,0.91785917]
[1771835536612,0.53192344,1883.8,1883.3,0.91785917]
[1771835536817,0.90991189,1883.9,1883.3,0.91785917]
[1771835537017,0.53192487,1883.8,1883.3,0.91785917]
[1771835537218,0.90991189,1883.8,1883.3,0.91785917]
[1771835537619,0.91431135,1883.6,1883.3,0.91785917]
[1771835537820,0.91431135,1883.6,1883.2,0.96783232]
[1771835538721,0.91431135,1883.6,1883.0,0.90856174]
[1771835538920,0.5317079,1883.5,1883.0,0.90856174]
[1771835539114,0.94690415,1883.4,1883.0,0.90856174]
[1771835541123,0.94690415,1883.4,1882.8,0.90856174]
[1771835541326,0.94690415,1883.4,1882.7,0.91469721]
[1771835541619,0.2655,1883.5,1882.7,0.00613547]
[1771835541620,0.94690415,1883.2,1882.7,0.00613547]
[1771835541818,0.94690415,1883.2,1882.5,11.15881687]
[1771835541819,0.53098659,1883.1,1882.5,0.90856174]
[1771835542122,0.94690415,1882.9,1882.5,0.90856174]
[1771835542420,0.94690415,1882.9,1882.4,0.90856174]
[1771835542822,0.94690415,1882.9,1882.4,0.91317235]
[1771835550341,0.94690415,1883.0,1882.4,0.91317235]
[1771835550536,0.94690415,1883.0,1881.5,0.26577]
[1771835550537,0.26557,1882.9,1881.8,0.90856174]
[1771835550760,0.94690415,1882.8,1881.8,0.90856174]
[1771835551042,0.52863887,1882.7,1881.8,0.90856174]
[1771835551241,0.94690415,1882.8,1881.8,0.90856174]
[1771835551435,0.94690415,1882.6,1881.8,0.90856174]
[1771835551633,0.95328096,1882.6,1881.8,0.91490272]
[1771835562752,0.94690415,1882.4,1881.8,0.91490272]
[1771835563252,0.94690415,1882.3,1881.8,0.91490272]
[1771835564753,0.94690415,1882.3,1881.8,0.00634098]
[1771835565457,0.94690415,1882.1,1881.8,9.8e-07]
[1771835568860,0.92303632,1882.5,1881.8,0.91214696]
[1771835569054,0.52824476,1882.4,1881.8,0.91214696]
[1771835569257,0.92303632,1882.3,1881.8,9.8e-07]
[1771835571462,0.92303632,1882.2,1881.8,9.8e-07]
[1771835575458,0.92303632,1882.0,1881.8,9.8e-07]
[1771835583168,0.92303632,1882.2,1881.8,0.91214696]
[1771835583367,7.5805014,1882.1,1881.8,0.91214696]
[1771835583567,1.45352928,1882.0,1881.8,9.8e-07]
[1771835583762,0.92303632,1882.0,1881.8,9.8e-07]
[1771835594881,0.53091063,1881.9,1881.1,0.91214598]
[1771835595178,0.92303632,1881.5,1880.7,0.91214598]
[1771835595479,0.92303632,1881.3,1880.7,0.91214598]
[1771835595979,0.92303632,1881.3,1880.7,0.91894501]
[1771835596180,3.25993051,1881.2,1880.5,0.91214598]
[1771835596377,0.92303632,1881.0,1880.5,0.91214598]
[1771835596878,0.92303632,1881.0,1879.9,0.91214598]
[1771835596879,0.92303632,1880.7,1879.9,0.91214598]
[1771835597180,0.00381461,1880.7,1880.5,0.91214598]
[1771835598182,0.00381461,1880.7,1880.4,0.94173543]
[1771835598371,0.94306152,1880.7,1880.4,0.94173543]
[1771835598575,0.94306152,1880.7,1880.3,0.94173543]
[1771835598776,0.00381461,1880.7,1880.3,0.94173543]
[1771835600170,0.94306152,1880.7,1880.3,0.94173543]
[1771835600376,0.00381461,1880.7,1880.3,0.94173543]
[1771835601880,0.00381461,1880.7,1880.4,0.94173543]
[1771835602181,0.93924691,1881.0,1880.6,0.94173543]
[1771835603084,0.94435419,1881.0,1880.6,0.94173543]
[1771835605073,0.93924691,1881.3,1880.9,0.94173543]
[1771835605686,0.93924691,1881.3,1880.7,0.94173543]
[1771835606081,0.94545509,1881.3,1880.7,0.94173543]
[1771835606581,0.94545509,1881.3,1880.9,0.94173543]
[1771835606782,0.93924691,1881.8,1881.3,0.94173543]
[1771835606986,0.93924691,1881.8,1881.1,0.94173543]
[1771835607788,0.94382485,1881.8,1881.1,0.94565959]
[1771835610688,0.93924691,1881.6,1881.1,0.94565959]
[1771835614292,0.93924691,1881.4,1881.1,0.94565959]
[1771835614790,0.93924691,1881.4,1881.1,0.00392416]
[1771835614986,0.93924691,1881.4,1880.9,0.94173543]
[1771835615892,0.93924691,1881.4,1880.9,0.94603005]
[1771835616094,0.93924691,1881.2,1880.9,0.00429462]
[1771835616290,0.26579,1881.3,1879.9,0.26599]
[1771835616291,0.93924691,1881.0,1880.3,0.94173543]
[1771835617390,0.93924691,1881.0,1880.3,0.94583387]
[1771835619792,0.93924691,1880.9,1880.3,0.94583387]
[1771835619993,0.93924691,1880.7,1879.6,0.09254495]
[1771835620194,0.93924691,1880.7,1880.0,0.94173543]
[1771835621093,0.93924691,1880.7,1880.0,0.94804261]
[1771835622994,0.26589,1880.6,1880.0,0.94804261]
[1771835623299,0.93924691,1880.5,1880.0,0.94804261]
[1771835624199,0.93924691,1880.3,1879.7,0.94173543]
[1771835624500,0.93924691,1880.3,1879.1,0.94173543]
[1771835625295,0.94409533,1880.3,1879.1,0.94668011]
[1771835625500,0.00484842,1880.3,1879.3,0.94173543]
[1771835626396,0.00484842,1880.3,1879.4,0.26606]
[1771835626597,0.93924691,1880.8,1879.5,0.94173543]
[1771835627503,0.9456914,1880.8,1879.5,0.94173543]
[1771835629005,0.96973369,1880.6,1879.5,0.94173543]
[1771835629206,0.26591,1880.5,1879.5,0.94173543]
[1771835629404,1.23564369,1880.5,1879.5,0.94173543]
[1771835629704,0.96973369,1880.4,1879.5,0.94173543]
[1771835636203,0.96973369,1880.6,1879.5,0.94173543]
[1771835636606,0.96973369,1880.5,1879.5,0.94173543]
[1771835638099,0.96973369,1880.3,1879.2,0.9224024]
[1771835638905,0.96973369,1880.1,1879.2,0.9224024]
[1771835643715,0.96973369,1880.1,1879.3,0.9224024]
[1771835644111,6.73289,1880.6,1879.3,0.9224024]
[1771835644112,0.96973369,1880.5,1879.3,0.9224024]
[1771835644317,0.96973369,1880.3,1879.3,0.9224024]
[1771835646713,0.96973369,1880.1,1879.2,4.5524024]
[1771835647016,0.96973369,1879.9,1879.3,0.9224024]
[1771835648214,0.96973369,1879.9,1879.1,0.92734708]
[1771835648419,0.96973369,1879.7,1879.1,0.92734708]
[1771835648617,0.96973369,1879.9,1879.1,0.92734708]
[1771835653023,0.26596,1880.2,1879.1,0.92734708]
[1771835653024,0.96973369,1880.1,1879.1,0.92734708]
[1771835656022,0.96973369,1879.9,1879.1,0.92734708]
[1771835667326,0.90054021,1880.0,1879.2,0.98723833]
[1771835667625,0.90054021,1880.2,1879.2,0.98723833]
[1771835667823,0.5287032,1880.1,1879.2,0.98723833]
[1771835668026,1.42924341,1880.0,1879.2,0.98723833]
[1771835668223,0.90054021,1879.9,1879.2,0.98723833]
[1771835669726,0.90054021,1880.4,1879.2,0.98723833]
[1771835669925,0.5287474,1880.3,1879.2,0.98723833]
[1771835670121,0.90054021,1880.1,1879.2,0.98723833]
[1771835670523,0.90054021,1880.4,1879.4,0.98723833]
[1771835671724,0.90054021,1880.4,1879.5,0.98723833]
[1771835672931,0.90054021,1880.4,1879.6,0.98723833]
[1771835673425,0.90054021,1880.7,1879.6,0.98723833]
[1771835673628,0.90054021,1880.5,1879.6,0.98723833]
[1771835676425,0.00644449,1880.8,1879.7,0.98723833]
[1771835676426,0.69415808,1880.7,1879.7,0.98723833]
[1771835676632,0.70060257,1880.8,1880.1,0.98723833]
[1771835679126,0.53300481,1880.8,1880.1,0.98723833]
[1771835680032,0.53737982,1880.8,1880.1,0.98723833]
[1771835680232,0.53305591,1880.6,1879.7,0.98723833]
[1771835680434,0.53531259,1880.4,1879.7,0.98723833]
[1771835683035,0.53531259,1880.4,1879.3,0.98723833]
[1771835685340,0.53531259,1880.4,1879.5,0.98723833]
[1771835685834,0.53944025,1880.7,1879.8,0.98723833]
[1771835691936,0.54770693,1880.8,1880.0,0.98472167]
[1771835692245,0.54770693,1880.8,1880.1,0.98472167]
[1771835694844,0.54877622,1880.2,1879.5,0.98472167]
[1771835695043,0.54877622,1880.6,1879.5,0.98472167]
[1771835695237,0.26588,1880.7,1879.5,3.42840808]
[1771835695238,0.54938505,1880.4,1879.5,3.42840808]
[1771835695443,0.26588,1880.7,1879.9,0.98472167]
[1771835695444,0.54948719,1880.7,1879.9,0.98472167]
[1771835701350,0.56067586,1880.5,1879.9,0.98472167]
[1771835703755,0.54619115,1880.7,1879.9,0.98472167]
[1771835705661,0.00437501,1880.8,1879.9,0.98472167]
[1771835705862,0.52928523,1880.7,1879.9,0.98472167]
[1771835706063,0.54029865,1880.8,1879.9,0.98472167]
[1771835706262,1.06575309,1880.7,1879.9,0.98472167]
[1771835706463,0.53644259,1880.7,1879.9,0.98472167]
[1771835707858,0.53816743,1880.8,1880.0,0.98472167]
[1771835708064,0.00437501,1880.8,1880.2,0.98472167]
[1771835709862,0.53338614,1881.0,1880.2,0.98472167]
[1771835710865,0.53955075,1881.0,1880.2,0.98472167]
[1771835711664,0.00616461,1881.0,1880.2,0.98472167]
[1771835711860,0.53953332,1880.5,1879.6,0.98472167]
[1771835714567,0.54254374,1880.4,1879.6,0.98472167]
[1771835715164,0.54117356,1880.2,1879.6,0.98472167]
[1771835715370,0.54117356,1880.2,1879.5,0.98472167]
[1771835719969,0.52144898,1880.0,1879.1,0.00494468]
[1771835720171,0.52144898,1879.8,1879.1,0.96328806]
[1771835723674,0.52144898,1879.8,1878.4,0.09260257]
[1771835723675,6.54428,1879.7,1878.4,0.09260257]
[1771835723876,0.51900433,1879.5,1878.4,0.95834338]
[1771835724670,0.52429107,1879.5,1878.4,0.96294873]
[1771835732178,0.51399777,1879.3,1878.4,0.96294873]
[1771835736877,4.43777336,1880.2,1879.0,6.54668]
[1771835737081,0.7375504,1880.5,1879.6,0.95834338]
[1771835737881,0.74225417,1880.5,1879.6,0.95834338]
[1771835740278,0.71665159,1880.3,1878.7,0.95834338]
[1771835740587,0.71665159,1880.1,1878.7,0.95834338]
[1771835741084,0.5262496,1880.0,1878.7,0.95834338]
[1771835741274,0.71665159,1880.1,1878.7,0.95834338]
[1771835741478,0.70719529,1879.9,1878.7,0.95834338]
[1771835742887,0.71660269,1879.7,1878.7,0.95834338]
[1771835760502,0.71660269,1879.7,1878.8,0.91490855]
[1771835761403,0.75771828,1879.9,1879.0,0.91490855]
[1771835769106,0.748554,1879.7,1879.0,0.91490855]
[1771835773110,0.52911786,1879.6,1879.0,0.91490855]
[1771835773305,0.748554,1879.7,1879.0,0.91490855]
[1771835773505,0.75348047,1879.5,1879.0,0.91490855]
[1771835776209,0.52912191,1879.4,1878.7,0.91490855]
[1771835776510,0.75328107,1879.3,1878.7,0.91490855]
[1771835792823,0.52838139,1879.2,1878.5,0.9375999]
[1771835793024,0.71128853,1879.1,1878.5,0.9375999]
[1771835793222,0.71793622,1879.1,1878.5,0.9375999]
[1771835794623,0.71793622,1879.1,1878.4,0.94220525]
[1771835796622,0.71793622,1879.1,1878.4,0.00460535]
[1771835796817,0.71434762,1878.9,1878.4,0.00460535]
[1771835797231,0.71434762,1878.9,1878.4,0.94220525]
[1771835799125,0.71434762,1878.9,1878.0,0.9375999]
[1771835799428,0.71434762,1878.9,1877.3,0.98641483]
[1771835799429,0.43501325,1878.4,1877.3,0.9375999]
[1771835799633,0.43485888,1878.5,1877.5,0.9375999]
[1771835800030,0.43485888,1878.5,1877.5,0.94183273]
[1771835802631,0.40558638,1878.3,1877.3,0.9375999]
[1771835802837,0.40558638,1878.1,1877.3,0.9375999]
[1771835803636,0.40558638,1878.1,1877.3,0.94201281]
[1771835806440,0.40732699,1878.7,1877.3,0.94201281]
[1771835806642,0.40732699,1878.5,1877.3,0.94201281]
[1771835807237,0.40732699,1878.5,1877.4,0.9375999]
[1771835811243,0.40732699,1878.5,1877.8,0.92894425]
[1771835813350,0.40732699,1878.5,1877.9,2.7433314]
[1771835815447,0.01435399,1878.7,1878.2,0.92894425]
[1771835818347,0.00235364,1879.0,1878.3,1.81438715]
[1771835818547,0.00235364,1878.8,1878.3,2.75866808]
[1771835818850,0.00235364,1878.8,1878.3,0.94428093]
[1771835819051,0.00235364,1878.8,1878.4,0.94428093]
[1771835819250,0.00664769,1879.1,1878.4,0.94428093]
[1771835819548,0.00664769,1879.1,1878.5,0.94547866]
[1771835820552,0.53425954,1878.8,1878.5,0.40021866]
[1771835820754,0.53425954,1878.4,1877.6,0.92894425]
[1771835821147,0.53425954,1878.4,1877.8,0.92894425]
[1771835821951,0.5344594,1878.2,1877.5,0.92894425]
[1771835822253,0.5344594,1878.2,1877.7,0.92894425]
[1771835823556,0.5344594,1878.2,1877.6,0.92894425]
[1771835830660,0.49813844,1878.0,1877.6,0.92894425]
[1771835831858,0.49309227,1877.8,1877.4,0.92894425]
[1771835832059,0.49309227,1877.6,1877.3,0.93335716]
[1771835832361,0.4994177,1877.6,1877.3,0.93335716]
[1771835832758,0.4994177,1877.6,1876.5,0.92894425]
[1771835832759,0.4895615,1877.4,1876.5,0.92894425]
[1771835833662,0.4895615,1877.4,1876.5,0.93540098]
[1771835836665,0.00632543,1877.6,1876.7,3.37897273]
[1771835836863,0.00632543,1877.6,1876.8,0.92894425]
[1771835840363,0.4205562,1878.0,1876.8,0.92894425]
[1771835841067,0.43422411,1878.1,1877.0,0.89592777]
[1771835841262,0.43863625,1878.1,1877.1,0.89592777]
[1771835842067,0.00441214,1878.1,1877.1,0.89592777]
[1771835842362,0.43430724,1878.1,1877.1,0.89592777]
[1771835843964,0.00441214,1878.1,1877.1,0.89592777]
[1771835847770,0.42947633,1878.1,1877.1,0.89592777]
[1771835848376,0.42947633,1878.1,1877.3,0.89592777]
[1771835848574,0.42068339,1878.5,1877.4,0.89592777]
[1771835848768,0.42068339,1878.5,1877.5,0.89592777]
[1771835848973,0.42068339,1878.5,1877.4,0.26635]
[1771835848974,0.42068339,1878.5,1877.7,0.89592777]
[1771835849572,0.424672,1878.5,1877.7,0.89592777]
[1771835850071,0.00398861,1878.5,1877.7,0.89592777]
[1771835850473,0.4361139,1878.5,1877.7,0.89592777]
[1771835857280,0.4361139,1878.5,1878.1,0.89592777]
[1771835857480,0.4361139,1878.5,1878.1,0.90224317]
[1771835857680,0.4361139,1878.5,1877.8,0.89592777]
[1771835857980,0.41488341,1878.5,1878.1,0.89592777]
[1771835858779,2.07987567,1879.0,1878.1,0.89592777]
[1771835859077,7.36249409,1878.9,1878.1,0.89592777]
[1771835859278,0.52630586,1878.8,1878.1,0.89592777]
[1771835859477,2.07987567,1879.0,1878.1,0.89592777]
[1771835859678,7.3613098,1878.9,1878.1,0.90098173]
[1771835859880,0.52621614,1878.8,1878.1,0.90098173]
[1771835860076,2.0843216,1879.0,1878.1,0.90098173]
[1771835860280,7.36147343,1878.9,1878.1,0.90098173]
[1771835860481,0.52622781,1878.8,1878.1,0.90098173]
[1771835860783,0.27056593,1879.0,1878.4,0.89592777]
[1771835861377,1.81375567,1879.1,1878.4,0.89592777]
[1771835861579,0.52611755,1879.0,1878.4,0.89592777]
[1771835861882,1.81375567,1879.1,1878.4,0.89592777]
[1771835862187,0.52611766,1879.0,1878.4,0.89592777]
[1771835862481,0.26615,1878.8,1878.1,0.90098173]
[1771835862683,1.81375567,1878.7,1878.1,0.90098173]
[1771835864682,1.81375567,1878.3,1877.6,0.89592777]
[1771835864879,1.81375567,1878.5,1877.6,0.89592777]
[1771835865187,1.81375567,1878.5,1877.5,1.81375567]
[1771835865188,1.81375567,1878.5,1877.8,0.89592777]
[1771835865484,0.52613422,1878.4,1877.8,0.89592777]
[1771835865678,1.81375567,1878.5,1877.8,0.90106594]
[1771835865877,0.52613458,1878.4,1877.8,0.90106594]
[1771835866078,1.81375567,1878.5,1877.8,0.90106594]
[1771835866287,0.52613468,1878.4,1877.8,0.90106594]
[1771835866488,1.81375567,1878.5,1877.8,0.90106594]
[1771835866689,0.26618,1878.6,1877.9,0.89592777]
[1771835866881,0.52653425,1878.5,1877.9,0.89592777]
[1771835867082,0.26618,1878.6,1877.9,0.89592777]
[1771835867281,0.52653552,1878.5,1877.9,0.89592777]
[1771835867482,0.26618,1878.6,1877.9,0.89592777]
[1771835867679,0.52672826,1878.5,1877.9,0.89592777]
[1771835867984,0.26618,1878.6,1877.9,0.89592777]
[1771835868186,0.52672859,1878.5,1877.9,0.89592777]
[1771835868385,0.26618,1878.6,1877.9,0.89592777]
[1771835868587,0.52690632,1878.5,1877.9,0.89592777]
[1771835868787,0.26618,1878.6,1877.9,0.89592777]
[1771835868989,0.52690632,1878.5,1877.9,0.89592777]
[1771835869191,0.52711002,1878.4,1877.9,0.89592777]
[1771835869389,0.26618,1878.6,1877.9,0.89592777]
[1771835869584,0.52710937,1878.5,1877.9,0.89592777]
[1771835869790,0.52710937,1878.4,1877.9,0.89592777]
[1771835869987,0.26618,1878.6,1877.9,0.89592777]
[1771835870290,0.5271102,1878.5,1877.9,0.89592777]
[1771835870490,0.26618,1878.6,1877.9,0.89592777]
[1771835870691,0.52736419,1878.5,1877.9,0.89592777]
[1771835870990,0.26618,1878.6,1877.9,0.89592777]
[1771835871194,0.52736446,1878.5,1877.9,0.89592777]
[1771835871390,0.52736446,1878.4,1877.9,0.89592777]
[1771835871591,0.26618,1878.6,1877.9,0.89592777]
[1771835871894,0.52746821,1878.5,1877.9,0.89592777]
[1771835872096,0.52746821,1878.4,1877.9,0.89592777]
[1771835872296,0.26618,1878.6,1877.9,0.89592777]
[1771835872495,0.52756582,1878.5,1877.9,0.89592777]
[1771835872690,6.47998575,1879.0,1877.9,0.89592777]
[1771835872893,7.36104945,1878.9,1877.9,0.89592777]
[1771835873094,7.36104945,1878.8,1877.9,0.89592777]
[1771835873289,7.36104945,1878.7,1877.9,0.89592777]
[1771835873591,7.36104945,1878.6,1877.9,0.89592777]
[1771835873789,0.52758723,1878.5,1877.9,0.89592777]
[1771835874098,0.52758723,1878.4,1877.9,0.89592777]
[1771835874394,6.47998575,1879.0,1877.9,0.89592777]
[1771835874598,7.36394359,1878.9,1877.9,0.89592777]
[1771835874793,11.76355886,1878.8,1877.9,0.89592777]
[1771835874999,7.36394359,1878.7,1877.9,0.89592777]
[1771835875299,7.36394359,1878.6,1877.9,0.89592777]
[1771835875599,0.52780226,1878.5,1877.9,0.89592777]
[1771835875798,4.39961527,1878.9,1877.9,0.89592777]
[1771835876097,7.36548576,1878.8,1877.9,0.89592777]
[1771835876294,7.36548576,1878.7,1877.9,0.89592777]
[1771835876494,7.36548576,1878.6,1877.9,0.89592777]
[1771835876696,0.52791709,1878.5,1877.9,0.89592777]
[1771835876999,4.39961527,1878.9,1877.9,0.89592777]
[1771835877198,7.3668718,1878.8,1877.9,0.89592777]
[1771835877498,7.3668718,1878.7,1877.9,0.89592777]
[1771835877694,7.3668718,1878.6,1877.9,0.89592777]
[1771835877898,4.39961527,1878.8,1877.9,0.89592777]
[1771835877899,0.528023,1878.5,1877.9,0.89592777]
[1771835878100,0.528023,1878.4,1877.9,0.89592777]
[1771835878296,4.39961527,1878.8,1877.9,0.89592777]
[1771835878497,7.37048649,1878.7,1877.9,0.89592777]
[1771835878693,7.37076725,1878.6,1878.0,0.89226293]
[1771835878896,0.52827924,1878.5,1878.0,0.89226293]
[1771835879098,4.42947059,1878.9,1878.0,0.89226293]
[1771835879298,7.37085397,1878.8,1878.0,0.89226293]
[1771835879499,7.37085397,1878.7,1878.0,0.89226293]
[1771835879699,7.37085397,1878.6,1878.0,0.89226293]
[1771835879895,0.52831674,1878.5,1878.0,0.89226293]
[1771835880099,4.42947059,1878.9,1878.0,0.89226293]
[1771835880300,7.37090919,1878.8,1878.0,0.89226293]
[1771835880600,7.37090919,1878.7,1878.0,0.89226293]
[1771835880799,7.37090919,1878.6,1878.0,0.89226293]
[1771835881002,0.52832046,1878.5,1878.0,0.89226293]
[1771835881205,4.42947059,1878.9,1878.0,0.89226293]
[1771835881403,7.37065066,1878.8,1878.0,0.89226293]
[1771835881598,7.37065066,1878.7,1878.0,0.89226293]
[1771835881804,7.37065066,1878.6,1878.0,0.89226293]
[1771835882003,0.52830187,1878.5,1878.0,0.89226293]
[1771835882208,0.26615,1878.8,1878.0,0.89226293]
[1771835882405,0.02621637,1878.6,1877.8,0.89913466]
[1771835882604,0.02621637,1878.4,1877.8,0.89913466]
[1771835884808,0.03040437,1878.7,1877.8,0.89913466]
[1771835885004,0.03040437,1878.5,1877.8,0.89913466]
[1771835885408,0.55979594,1878.8,1878.3,0.86182626]
[1771835886808,0.55979594,1878.8,1877.9,0.86182626]
[1771835895816,0.55979594,1878.8,1878.1,0.86182626]
[1771835896023,0.49321398,1878.9,1878.1,0.86182626]
[1771835896421,0.49314568,1879.1,1878.1,0.86182626]
[1771835896614,0.49441696,1879.2,1878.7,0.86182626]
[1771835897522,1.00921047,1879.1,1878.7,0.86182626]
[1771835897726,0.00621672,1879.1,1878.7,0.86182626]
[1771835897923,0.47995912,1879.4,1878.7,0.86182626]
[1771835898120,0.47563405,1879.2,1878.7,0.86182626]
[1771835898623,0.47479762,1879.5,1878.7,0.86182626]
[1771835898821,0.47479762,1879.3,1878.7,0.86182626]